{"text_format":"3","workbook":"xlsx","n_sheets":1,"sheets":["Proposta"],"not_rendered":{"images":1,"defined_names":20},"read":"whole","date_system":"1900"}

{"sheet":"Proposta","index":0,"n_rows":39,"n_cols":7,"rows_kept":39,"merged":[[0,1,3,1],[0,3,0,6],[1,4,1,6],[2,4,2,6],[32,3,35,4],[36,3,36,6],[37,3,37,5],[38,3,38,5]]}
[{"$nulls":3},"PROPOSTA DE CONSTRUÇÃO"]
[{"$nulls":3},"Nome da empresa","| Insira o endereço da empresa nesta célula"]
[{"$nulls":3},"Telefone","| Insira o fax e o email de contato da empresa nesta célula"]
[{"$nulls":3},"QUANTIDADE","DESCRIÇÃO","PREÇO UNITÁRIO","MONTANTE"]
[null,"CLIENTE",null,10,"Item 1",{"v":165,"d":"R$ 165.00"},{"$f":"IFERROR(ItensDeLinha[[#This Row],[QUANTIDADE]]*ItensDeLinha[[#This Row],[PREÇO UNITÁRIO]], \"\")","v":{"v":1650,"d":"R$ 1,650.00"}}]
[null,"Insira o nome do cliente nesta célula",null,21,"Item 2",{"v":40,"d":"R$ 40.00"},{"$f":"IFERROR(ItensDeLinha[[#This Row],[QUANTIDADE]]*ItensDeLinha[[#This Row],[PREÇO UNITÁRIO]], \"\")","v":{"v":840,"d":"R$ 840.00"}}]
[null,"ORÇAMENTO Nº",null,5,"Item 3",{"v":10.5,"d":"R$ 10.50"},{"$f":"IFERROR(ItensDeLinha[[#This Row],[QUANTIDADE]]*ItensDeLinha[[#This Row],[PREÇO UNITÁRIO]], \"\")","v":{"v":52.5,"d":"R$ 52.50"}}]
[null,"C-1234",null,164,"Item 4",{"v":2.75,"d":"R$ 2.75"},{"$f":"IFERROR(ItensDeLinha[[#This Row],[QUANTIDADE]]*ItensDeLinha[[#This Row],[PREÇO UNITÁRIO]], \"\")","v":{"v":451,"d":"R$ 451.00"}}]
[null,"DATA",null,6,"Item 5",{"v":12,"d":"R$ 12.00"},{"$f":"IFERROR(ItensDeLinha[[#This Row],[QUANTIDADE]]*ItensDeLinha[[#This Row],[PREÇO UNITÁRIO]], \"\")","v":{"v":72,"d":"R$ 72.00"}}]
[null,{"$f":"TODAY()","v":"2018-11-16"},null,18,"Item 6",{"v":5.5,"d":"R$ 5.50"},{"$f":"IFERROR(ItensDeLinha[[#This Row],[QUANTIDADE]]*ItensDeLinha[[#This Row],[PREÇO UNITÁRIO]], \"\")","v":{"v":99,"d":"R$ 99.00"}}]
[null,"ENDEREÇO",null,1,"Item 7",{"v":25,"d":"R$ 25.00"},{"$f":"IFERROR(ItensDeLinha[[#This Row],[QUANTIDADE]]*ItensDeLinha[[#This Row],[PREÇO UNITÁRIO]], \"\")","v":{"v":25,"d":"R$ 25.00"}}]
[null,"Insira o endereço do cliente nesta célula",{"$nulls":4},{"$f":"IFERROR(ItensDeLinha[[#This Row],[QUANTIDADE]]*ItensDeLinha[[#This Row],[PREÇO UNITÁRIO]], \"\")","v":{"v":0,"d":"R$ 0.00"}}]
[null,"Cidade/Estado/CEP",{"$nulls":4},{"$f":"IFERROR(ItensDeLinha[[#This Row],[QUANTIDADE]]*ItensDeLinha[[#This Row],[PREÇO UNITÁRIO]], \"\")","v":{"v":0,"d":"R$ 0.00"}}]
[null,"Insira cidade, estado e CEP do cliente nesta célula",{"$nulls":4},{"$f":"IFERROR(ItensDeLinha[[#This Row],[QUANTIDADE]]*ItensDeLinha[[#This Row],[PREÇO UNITÁRIO]], \"\")","v":{"v":0,"d":"R$ 0.00"}}]
[null,"TELEFONE",{"$nulls":4},{"$f":"IFERROR(ItensDeLinha[[#This Row],[QUANTIDADE]]*ItensDeLinha[[#This Row],[PREÇO UNITÁRIO]], \"\")","v":{"v":0,"d":"R$ 0.00"}}]
[null,"Insira o número de telefone do cliente nesta célula",{"$nulls":4},{"$f":"IFERROR(ItensDeLinha[[#This Row],[QUANTIDADE]]*ItensDeLinha[[#This Row],[PREÇO UNITÁRIO]], \"\")","v":{"v":0,"d":"R$ 0.00"}}]
[null,"EMAIL",{"$nulls":4},{"$f":"IFERROR(ItensDeLinha[[#This Row],[QUANTIDADE]]*ItensDeLinha[[#This Row],[PREÇO UNITÁRIO]], \"\")","v":{"v":0,"d":"R$ 0.00"}}]
[null,"Insira o endereço de email do cliente nesta célula",{"$nulls":4},{"$f":"IFERROR(ItensDeLinha[[#This Row],[QUANTIDADE]]*ItensDeLinha[[#This Row],[PREÇO UNITÁRIO]], \"\")","v":{"v":0,"d":"R$ 0.00"}}]
[null,"VENDEDOR",{"$nulls":4},{"$f":"IFERROR(ItensDeLinha[[#This Row],[QUANTIDADE]]*ItensDeLinha[[#This Row],[PREÇO UNITÁRIO]], \"\")","v":{"v":0,"d":"R$ 0.00"}}]
[null,"Insira o nome do vendedor nesta célula",{"$nulls":4},{"$f":"IFERROR(ItensDeLinha[[#This Row],[QUANTIDADE]]*ItensDeLinha[[#This Row],[PREÇO UNITÁRIO]], \"\")","v":{"v":0,"d":"R$ 0.00"}}]
[null,"PROJETO",{"$nulls":4},{"$f":"IFERROR(ItensDeLinha[[#This Row],[QUANTIDADE]]*ItensDeLinha[[#This Row],[PREÇO UNITÁRIO]], \"\")","v":{"v":0,"d":"R$ 0.00"}}]
[null,"Insira o nome do projeto nesta célula",{"$nulls":4},{"$f":"IFERROR(ItensDeLinha[[#This Row],[QUANTIDADE]]*ItensDeLinha[[#This Row],[PREÇO UNITÁRIO]], \"\")","v":{"v":0,"d":"R$ 0.00"}}]
[null,"PREPARADO POR:",{"$nulls":4},{"$f":"IFERROR(ItensDeLinha[[#This Row],[QUANTIDADE]]*ItensDeLinha[[#This Row],[PREÇO UNITÁRIO]], \"\")","v":{"v":0,"d":"R$ 0.00"}}]
[null,"Insira o nome do preparador nesta célula",{"$nulls":4},{"$f":"IFERROR(ItensDeLinha[[#This Row],[QUANTIDADE]]*ItensDeLinha[[#This Row],[PREÇO UNITÁRIO]], \"\")","v":{"v":0,"d":"R$ 0.00"}}]
[null,"AOS CUIDADOS DE",{"$nulls":4},{"$f":"IFERROR(ItensDeLinha[[#This Row],[QUANTIDADE]]*ItensDeLinha[[#This Row],[PREÇO UNITÁRIO]], \"\")","v":{"v":0,"d":"R$ 0.00"}}]
[null,"Insira o nome do contato desta proposta nesta célula",{"$nulls":4},{"$f":"IFERROR(ItensDeLinha[[#This Row],[QUANTIDADE]]*ItensDeLinha[[#This Row],[PREÇO UNITÁRIO]], \"\")","v":{"v":0,"d":"R$ 0.00"}}]
[null,"TERMOS DE PAGAMENTO",{"$nulls":4},{"$f":"IFERROR(ItensDeLinha[[#This Row],[QUANTIDADE]]*ItensDeLinha[[#This Row],[PREÇO UNITÁRIO]], \"\")","v":{"v":0,"d":"R$ 0.00"}}]
[null,"Total em 30 dias",{"$nulls":4},{"$f":"IFERROR(ItensDeLinha[[#This Row],[QUANTIDADE]]*ItensDeLinha[[#This Row],[PREÇO UNITÁRIO]], \"\")","v":{"v":0,"d":"R$ 0.00"}}]
[null,"DATA DE PAGAMENTO",{"$nulls":4},{"$f":"IFERROR(ItensDeLinha[[#This Row],[QUANTIDADE]]*ItensDeLinha[[#This Row],[PREÇO UNITÁRIO]], \"\")","v":{"v":0,"d":"R$ 0.00"}}]
[null,{"$f":"TODAY()+30","v":"2018-12-16"},{"$nulls":4},{"$f":"IFERROR(ItensDeLinha[[#This Row],[QUANTIDADE]]*ItensDeLinha[[#This Row],[PREÇO UNITÁRIO]], \"\")","v":{"v":0,"d":"R$ 0.00"}}]
[{"$nulls":5},"SUBTOTAL",{"$f":"SUBTOTAL(109,ItensDeLinha[MONTANTE])","v":{"v":3189.5,"d":"R$ 3,189.50"}}]
[{"$nulls":3},"ESTA PROPOSTA INCLUI AS SEGUINTES CONDIÇÕES:",null,"TAXA DE IMPOSTO ",{"v":0.0775,"d":"7.75%"}]
[{"$nulls":3},"Insira as condições aqui",null,"IMPOSTO ",{"$f":"IFERROR(Subtotal*AlíquotaDeImposto, \"\")","v":{"v":247.18625,"d":"R$ 247.19"}}]
[{"$nulls":5},"OUTROS "]
[{"$nulls":5},"TOTAL ",{"$f":"IFERROR(Subtotal+G33+Outros, \"\")","v":{"v":3436.68625,"d":"R$ 3,436.69"}}]
[]
[{"$nulls":3},"Assine abaixo para aceitar o orçamento:"]
[]
[{"$nulls":3},"Rep. autorizado",null,null,"Data"]